bitfinex-derivatives/quotes_ETHF0:USTF0_20250828
["timestamp","ask_amount","ask_price","bid_price","bid_amount"]
[1756400379604,0.22351,4466.1,4464.4,1.6808]
[1756400379798,3.2078,4465.8,4464.4,1.6808]
[1756400380000,3.2078,4465.8,4464.7,1.6808]
[1756400380205,0.40298,4465.7,4464.7,1.6808]
[1756400380403,3.61077,4465.8,4464.7,1.6808]
[1756400380603,3.2078,4465.8,4464.7,1.6808]
[1756400380800,3.2078,4465.9,4464.7,1.6808]
[1756400380999,0.403,4465.6,4465.0,1.6808]
[1756400381201,3.2078,4465.9,4464.4,3.2078]
[1756400381402,3.2078,4464.7,4463.3,1.6808]
[1756400381596,3.2078,4464.2,4463.3,1.6808]
[1756400381996,1.7648,4464.9,4463.3,1.6808]
[1756400381997,3.2078,4464.7,4463.3,1.6808]
[1756400382204,3.2078,4464.7,4463.7,3.2078]
[1756400382402,3.2078,4465.2,4463.8,1.6808]
[1756400382613,3.2078,4465.2,4464.0,1.6808]
[1756400382902,3.2078,4465.2,4464.4,1.6808]
[1756400383305,3.2078,4465.2,4464.5,3.2078]
[1756400383505,1.7648,4466.6,4464.6,1.6808]
[1756400383803,1.7648,4466.6,4464.5,3.2078]
[1756400383804,1.7648,4467.3,4465.8,0.40297]
[1756400384010,3.2078,4466.9,4465.6,1.6808]
[1756400384207,3.2078,4466.9,4465.6,1.90469]
[1756400384404,3.2078,4467.6,4466.2,0.40293]
[1756400384603,3.2078,4467.6,4466.0,3.2078]
[1756400384803,1.7648,4469.0,4467.2,3.2078]
[1756400384999,3.2078,4468.3,4467.3,1.6808]
[1756400385205,1.7648,4469.0,4467.5,0.40282]
[1756400385206,4.9726,4469.0,4467.5,0.40282]
[1756400385406,3.2078,4469.0,4467.8,1.6808]
[1756400385610,3.2078,4469.6,4468.8,3.2078]
[1756400385808,3.2078,4469.6,4468.5,4.8886]
[1756400386007,3.2078,4469.6,4468.5,3.2078]
[1756400386200,3.2078,4469.6,4468.7,1.6808]
[1756400386406,3.2078,4471.2,4469.9,1.6808]
[1756400386608,3.2078,4471.2,4470.1,4.8886]
[1756400387009,3.2078,4471.7,4470.1,46.09118]
[1756400387315,0.22351,4471.5,4470.6,3.2078]
[1756400387610,3.2078,4471.2,4470.1,45.6886]
[1756400387812,0.22351,4471.4,4470.1,45.6886]
[1756400388018,3.2078,4471.7,4470.1,45.6886]
[1756400388211,3.2078,4471.7,4470.1,44.41038]
[1756400388408,3.2078,4471.7,4470.8,1.6808]
[1756400388706,0.40247,4471.4,4470.8,1.6808]
[1756400388911,0.40247,4471.4,4470.1,40.8]
[1756400388912,0.40251,4470.9,4470.1,40.8]
[1756400389109,3.2078,4470.3,4470.1,1.6808]
[1756400389310,3.2078,4470.3,4469.4,1.6808]
[1756400389503,4.9726,4471.2,4469.5,40.8]
[1756400389706,3.2078,4471.2,4469.6,1.6808]
[1756400389906,3.2078,4471.2,4470.0,1.6808]
[1756400390101,0.40255,4470.5,4470.0,1.6808]
[1756400390311,3.2078,4470.7,4470.1,1.6808]
[1756400390513,0.40258,4470.1,4469.6,1.6808]
[1756400390711,3.2078,4470.2,4469.4,1.6808]
[1756400391015,0.40266,4469.3,4469.1,33.9238]
[1756400391207,3.2078,4469.2,4469.1,33.9238]
[1756400391411,3.2078,4469.2,4469.1,32.243]
[1756400391605,3.2078,4469.2,4469.1,31.76705]
[1756400391812,0.4028,4467.8,4467.6,1.6808]
[1756400392011,0.40278,4467.9,4467.3,3.2078]
[1756400392212,3.2078,4468.3,4467.4,42.4808]
[1756400392406,3.2078,4468.8,4467.5,1.6808]
[1756400392612,1.00694,4468.0,4466.8,1.6808]
[1756400392909,3.2078,4467.8,4466.9,40.8]
[1756400393106,0.40286,4467.0,4466.9,40.8]
[1756400393307,0.40288,4466.8,4466.7,32.233]
[1756400393509,3.61068,4466.8,4466.7,32.233]
[1756400393713,3.61068,4466.8,4466.7,33.9138]
[1756400393912,0.40288,4466.8,4466.7,33.9138]
[1756400394118,0.40288,4466.8,4466.7,32.233]
[1756400394416,1.00757722,4466.8,4466.7,32.233]
[1756400394813,1.00757722,4466.8,4466.7,31.67846]
[1756400395009,1.00732,4466.4,4464.8,3.2078]
[1756400395317,0.22351,4466.2,4464.9,42.4808]
[1756400395510,0.403,4465.5,4464.9,42.4808]
[1756400396312,3.2078,4465.3,4465.0,1.6808]
[1756400396519,0.40304,4465.1,4465.0,1.6808]
[1756400396812,3.2078,4465.4,4465.0,1.6808]
[1756400397012,0.403,4465.5,4465.0,1.6808]
[1756400397213,3.2078,4465.9,4465.0,1.6808]
[1756400397214,3.61077,4465.9,4465.0,1.6808]
[1756400397417,0.60465958,4465.8,4465.0,1.6808]
[1756400397614,0.40298,4465.8,4465.0,1.6808]
[1756400397810,3.2078,4465.9,4465.0,1.6808]
[1756400398118,0.40299,4465.7,4465.0,1.6808]
[1756400398312,3.2078,4465.9,4465.0,1.6808]
[1756400398612,3.2078,4465.4,4464.9,40.8]
[1756400398815,3.2078,4465.4,4465.0,1.6808]
[1756400399011,3.2078,4465.5,4465.0,1.6808]
[1756400399216,0.60537329,4465.4,4464.9,40.8]
[1756400399421,3.2078,4466.2,4465.0,1.6808]
[1756400399716,3.2078,4465.7,4465.0,1.6808]
[1756400399915,0.60549476,4465.6,4465.0,1.6808]
[1756400400114,3.2078,4466.2,4465.4,0.40301]
[1756400400321,3.2078,4465.7,4464.9,44.04677559]
[1756400400514,3.2078,4466.2,4465.0,1.6808]
[1756400400715,1.7648,4467.3,4465.0,1.6808]
[1756400400716,3.2078,4466.7,4465.7,3.2078]
[1756400401015,3.2078,4466.7,4465.8,1.6808]
[1756400401216,3.2078,4466.9,4465.7,7.2078]
[1756400401423,3.2078,4466.7,4465.8,1.6808]
[1756400401617,3.2078,4466.7,4466.0,1.6808]
[1756400401817,1.7648,4467.1,4465.9,40.8]
[1756400401818,3.2078,4466.5,4465.9,40.8]
[1756400402123,3.2078,4466.5,4465.9,1.6808]
[1756400402515,3.2078,4466.5,4464.4,32.234]
[1756400402516,3.2078,4466.5,4465.5,3.2078]
[1756400402810,3.2078,4466.0,4465.6,40.8]
[1756400403015,0.00335616,4466.6,4465.9,3.2078]
[1756400403217,3.43131,4466.4,4465.6,40.8]
[1756400403419,0.40295,4466.2,4465.6,40.8]
[1756400403620,3.2078,4466.0,4465.6,40.8]
[1756400404009,0.00335616,4466.6,4465.6,40.8]
[1756400404214,3.2078,4465.8,4465.6,40.8]
[1756400404520,0.22351,4466.4,4465.6,40.8]
[1756400404727,1.7648,4465.6,4465.5,0.00335616]
[1756400404918,3.2078,4465.7,4465.5,0.00335616]
[1756400405125,3.2078,4466.5,4465.6,40.8]
[1756400405621,0.00335616,4466.6,4465.6,40.8]
[1756400405821,4.9726,4466.5,4465.6,40.8]
[1756400406015,3.2078,4466.5,4465.6,40.9066]
[1756400406322,3.2078,4466.5,4465.6,40.8]
[1756400406526,1.16765608,4468.1,4466.7,0.40289]
[1756400406527,3.2078,4467.8,4466.7,0.40289]
[1756400406720,1.7261,4466.6,4466.3,3.2078]
[1756400407029,0.22351,4466.4,4465.6,3.2078]
[1756400407218,3.2078,4466.0,4465.5,0.00335616]
[1756400407415,3.61063,4467.5,4465.5,0.00335616]
[1756400407616,4.9339,4467.4,4465.6,0.1032]
[1756400407828,0.40288,4466.9,4465.6,0.1032]
[1756400408019,0.22351,4466.4,4465.6,0.1032]
[1756400408216,3.2078,4466.7,4465.6,0.1032]
[1756400408417,3.2078,4467.5,4466.8,0.40289]
[1756400408624,3.2078,4468.0,4467.4,0.1032]
[1756400408820,2.12879,4469.1,4467.9,3.2078]
[1756400409023,0.22351,4468.7,4467.9,3.2078]
[1756400409325,2.89375608,4469.6,4468.4,3.2078]
[1756400409621,1.7261,4469.9,4468.6,3.2078]
[1756400409818,1.7261,4469.5,4468.6,3.2078]
[1756400410019,0.40266,4469.5,4468.6,3.2078]
[1756400410324,0.40266,4469.5,4468.2,0.1032]
[1756400410325,1.7261,4469.4,4468.2,0.1032]
[1756400410624,1.00656,4469.8,4468.1,0.00335616]
[1756400410625,0.40276,4468.3,4468.1,0.00335616]
[1756400410929,1.00656,4469.8,4468.1,0.00335616]
[1756400410930,1.7261,4469.4,4468.1,0.00335616]
[1756400411226,1.7261,4468.8,4468.1,0.00335616]
[1756400411419,0.22351,4468.4,4468.1,0.00335616]
[1756400411619,1.7261,4468.3,4468.1,0.00335616]
[1756400411820,3.2078,4469.5,4468.1,0.00335616]
[1756400412021,1.7261,4468.9,4468.4,0.40274]
[1756400412223,3.2078,4469.5,4468.1,0.00335616]
[1756400412224,0.6031549,4468.8,4468.7,0.52102]
[1756400412524,0.22351,4469.3,4468.5,3.2078]
[1756400412724,1.7261,4469.1,4468.1,0.00335616]
[1756400413021,0.60421423,4469.0,4468.1,0.00335616]
[1756400413222,0.60421423,4468.9,4468.1,0.00335616]
[1756400413422,0.60421423,4468.8,4468.6,0.1183]
[1756400413627,0.60421423,4468.8,4468.5,3.2078]
[1756400413628,1.7261,4468.6,4468.5,3.2078]
[1756400413824,1.00716,4467.2,4464.5,0.4031]
[1756400414029,4.9339,4465.5,4464.3,1.7505]
[1756400414224,3.43131,4465.0,4464.9,0.0389644]
[1756400414425,0.22351,4465.0,4464.9,0.0389644]
[1756400414630,3.2078,4465.7,4464.9,0.0389644]
[1756400414927,0.61267676,4465.6,4464.8,1.7505]
[1756400415127,0.61267676,4465.6,4464.0,40.8]
[1756400415128,3.2078,4465.1,4464.0,40.8]
[1756400415631,0.22351,4464.9,4464.0,40.8]
[1756400415833,2.9078,4465.1,4464.7,0.40307]
[1756400416126,3.2078,4465.6,4465.1,0.40304]
[1756400416326,3.2078,4465.6,4464.2,3.2078]
[1756400416530,3.2078,4466.9,4466.0,0.40296]
[1756400416830,1.7261,4468.1,4466.4,4.1626]
[1756400417028,0.22351,4467.4,4466.5,0.40291]
[1756400417323,0.61214191,4468.0,4465.6,1.00748]
[1756400417324,3.2078,4467.7,4466.8,0.40288]
[1756400417529,3.2078,4467.7,4466.5,0.9548]
[1756400417724,1.7261,4468.0,4466.5,0.9548]
[1756400418030,1.7261,4468.0,4467.4,0.40283]
[1756400418231,1.7261,4467.9,4467.5,0.40282]
[1756400418426,0.22351,4468.1,4467.7,0.4028]
[1756400418733,0.22351,4468.4,4467.8,0.40279]
[1756400418930,3.2078,4468.9,4466.7,3.61069]
[1756400419131,1.7261,4467.7,4466.5,0.9548]
[1756400419426,1.00657,4469.7,4465.4,10.07538]
[1756400419427,1.7261,4469.2,4468.2,0.40276]
[1756400419631,0.22351,4469.0,4468.3,0.40275]
[1756400419933,3.2078,4469.7,4468.7,3.2078]
[1756400420136,1.7261,4470.1,4468.9,4.1626]
[1756400420332,1.7261,4470.1,4469.3,0.40266]
[1756400420531,3.2078,4470.2,4468.4,40.8]
[1756400420532,1.7261,4469.8,4468.4,40.8]
[1756400420732,1.7261,4469.4,4468.4,40.8]
[1756400420930,0.61452828,4469.3,4468.4,40.8]
[1756400421136,0.22351,4469.6,4469.2,0.40267]
[1756400421322,1.7261,4469.6,4468.8,0.4027]
[1756400421530,1.7261,4469.6,4468.5,1.35753]
[1756400421730,3.2078,4469.7,4468.4,40.8]
[1756400422029,1.7261,4469.6,4468.5,0.40274]
[1756400422238,1.7261,4469.6,4468.4,41.7548]
[1756400422535,1.7261,4469.6,4468.6,0.9548]
[1756400422734,0.22351,4469.4,4468.6,0.9548]
[1756400422937,0.22351,4469.2,4468.6,0.9548]
[1756400423233,0.22351,4469.2,4468.4,40.8]
[1756400423234,3.2078,4469.1,4468.4,41.7548]
[1756400423430,3.2078,4469.2,4468.9,0.40269]
[1756400423630,0.22351,4469.2,4468.4,41.7548]
[1756400423830,0.22351,4469.2,4468.5,1.00685]
[1756400424031,1.7261,4469.6,4469.4,0.40265]
[1756400424226,3.2078,4470.2,4470.0,0.4026]
[1756400424426,3.2078,4470.7,4469.7,1.00658]
[1756400424634,3.2078,4470.7,4469.8,0.9548]
[1756400424937,4.9339,4471.2,4470.7,0.40254]
[1756400425136,1.7261,4471.6,4470.0,1.00649]
[1756400425331,1.7261,4471.6,4470.2,0.9548]
[1756400425527,3.2078,4472.2,4470.5,0.9548]
[1756400425733,3.2078,4472.2,4470.4,3.2078]
[1756400426035,1.7261,4471.3,4470.2,0.40258]
[1756400426234,1.7261,4471.3,4469.9,40.8]
[1756400426235,0.22351,4470.9,4470.1,0.40259]
[1756400426437,3.2078,4470.8,4470.0,0.4026]
[1756400426637,1.7261,4470.8,4469.9,41.80652]
[1756400426839,3.2078,4471.3,4470.9,0.40252]
[1756400427138,1.7261,4471.7,4471.1,0.4025]
[1756400427337,1.7261,4472.1,4470.5,0.9548]
[1756400427530,1.94961,4472.1,4471.9,0.40243]
[1756400427831,1.94961,4472.1,4470.8,3.2078]
[1756400427832,1.7261,4472.1,4470.8,3.2078]
[1756400428135,1.7261,4471.1,4470.9,40.8]
[1756400428432,4.9339,4471.7,4471.5,0.40246]
[1756400428633,1.7261,4472.3,4471.1,1.00626]
[1756400428836,3.2078,4472.4,4471.5,0.9548]
[1756400429030,3.2078,4472.4,4472.2,0.4024]
[1756400429335,0.22351,4472.3,4472.0,0.40242]
[1756400429540,1.7261,4472.3,4471.1,3.2078]
[1756400429843,1.7261,4472.1,4470.8,0.9548]
[1756400430033,0.22351,4471.5,4471.1,0.4025]
[1756400430235,0.22351,4471.2,4470.6,3.2078]
[1756400430430,1.7261,4471.6,4470.6,3.2078]
[1756400430641,0.22351,4471.0,4470.6,3.2078]
[1756400430834,1.7261,4470.9,4469.4,4.1626]
[1756400431135,1.7261,4470.4,4469.7,0.40263]
[1756400431542,1.7261,4469.7,4469.5,0.40264]
[1756400431833,1.7261,4469.7,4464.6,2.78841805]
[1756400431834,1.7261,4469.5,4468.8,3.2078]
[1756400432035,1.7261,4468.9,4468.5,0.40274]
[1756400432230,1.7261,4469.0,4468.0,3.2078]
[1756400432436,3.2078,4469.7,4468.0,3.2078]
[1756400432738,0.22351,4469.3,4468.9,0.4027]
[1756400432939,1.7261,4469.6,4468.4,1.00687]
[1756400433141,0.22351,4469.5,4468.6,1.96163]
[1756400433343,3.2078,4469.7,4469.5,0.44239]
[1756400433740,1.94961,4469.6,4469.5,0.03974]
[1756400434135,1.7261,4469.6,4469.5,0.03974]
[1756400434641,1.94961,4469.6,4469.5,0.03974]
[1756400434838,1.94961,4469.6,4467.9,3.2078]
[1756400434839,5.02238464,4469.6,4467.9,3.2078]
[1756400435148,1.7261,4468.1,4467.6,0.40281]
[1756400435353,3.2078,4468.5,4467.1,1.00717]
[1756400435556,0.22351,4467.7,4467.5,0.40282]
[1756400435756,3.2078,4468.5,4468.3,0.40275]
[1756400436148,3.2078,4469.1,4467.7,2.00152]
[1756400436355,1.8262,4469.0,4467.9,3.2078]
[1756400436748,3.2078,4468.6,4467.4,3.2078]
[1756400437056,1.8262,4468.0,4467.2,0.40285]
[1756400437255,0.22351,4467.6,4467.4,0.40283]
[1756400437454,1.8262,4467.5,4467.4,0.40283]
[1756400437755,5.034,4468.1,4467.0,40.8]
[1756400437949,3.2078,4468.1,4467.0,40.8]
[1756400438259,1.8262,4467.3,4467.2,0.40285]
[1756400438854,3.2078,4467.6,4467.5,0.40283]
[1756400439352,5.034,4467.6,4467.5,0.40283]
[1756400440148,3.2078,4468.5,4467.7,1.00703]
[1756400440348,3.2078,4468.5,4468.4,0.40275]
[1756400440550,5.25751,4468.5,4468.4,0.40275]
[1756400440954,5.034,4468.5,4468.4,0.40275]
[1756400441155,1.8262,4468.5,4468.4,0.40275]
[1756400441758,5.034,4469.5,4469.4,0.40266]
[1756400442154,1.8262,4469.5,4469.4,0.40266]
[1756400442362,3.2078,4470.3,4470.2,0.40259]
[1756400442550,4.85252345,4470.3,4470.2,0.40259]
[1756400442956,1.8262,4470.3,4470.2,0.40259]
[1756400443152,5.034,4471.0,4470.9,0.40252]
[1756400443460,1.8262,4470.9,4470.8,0.40253]
[1756400444159,1.8262,4470.9,4470.8,3.61033]
[1756400444354,5.034,4471.6,4471.5,0.40247]
[1756400444555,1.8262,4471.6,4471.5,0.40247]
[1756400444756,3.2078,4472.1,4471.5,3.2078]
[1756400444963,1.8262,4472.0,4471.5,3.2078]
[1756400445160,2.04971,4471.6,4471.5,3.2078]
[1756400445460,0.22351,4471.9,4471.5,0.40246]
[1756400445762,1.8262,4471.8,4470.9,3.2078]
[1756400446059,0.22351,4471.5,4470.9,3.2078]
[1756400446358,1.8262,4471.5,4470.9,3.2078]
[1756400446566,1.8262,4471.7,4470.9,3.2078]
[1756400446764,2.04971,4471.0,4470.9,3.2078]
[1756400447164,2.04971,4471.0,4470.1,3.2078]
[1756400447361,1.8262,4471.0,4470.2,41.20258]
[1756400447562,0.22351,4470.7,4470.2,40.8]
[1756400447864,0.22351,4470.7,4470.1,3.2078]
[1756400448064,0.22351,4470.6,4470.1,3.2078]
[1756400448267,1.8262,4470.5,4470.1,3.2078]
[1756400448762,1.8262,4471.2,4470.1,3.2078]
[1756400449065,1.8262,4470.5,4469.5,0.40264]
[1756400449265,0.22351,4470.2,4469.6,41.20263]
[1756400449468,1.8262,4470.5,4469.4,0.40266]
[1756400449654,2.04971,4469.8,4469.3,1.0175]
[1756400449854,1.8262,4469.8,4469.3,1.0175]
[1756400450054,0.22351,4470.1,4469.2,32.227]
[1756400450055,1.8262,4470.7,4469.2,32.227]
[1756400450458,0.22351,4470.2,4469.2,32.227]
[1756400450866,0.22351,4470.1,4469.2,32.227]
[1756400451163,1.8262,4469.8,4469.2,32.227]
[1756400451357,1.8262,4469.8,4469.1,3.2078]
[1756400451358,3.2078,4469.8,4467.8,1.0175]
[1756400451563,1.8262,4469.5,4467.9,3.2078]
[1756400451763,0.22351,4468.9,4467.9,3.2078]
[1756400452063,0.22351,4469.4,4468.4,3.2078]
[1756400452262,0.40266,4469.4,4468.5,1.0175]
[1756400452465,5.034,4469.5,4468.5,1.0175]
[1756400452466,0.22351,4469.3,4468.5,1.0175]
[1756400452766,0.22351,4469.1,4468.5,1.0175]
[1756400452966,0.40268,4469.2,4468.5,1.0175]
[1756400453158,0.22351,4469.3,4468.5,1.0175]
[1756400453363,1.8262,4469.5,4468.5,1.0175]
[1756400453667,3.2078,4470.0,4468.5,1.0175]
[1756400453668,0.40263,4469.8,4468.5,1.42023]
[1756400453864,0.40263,4469.8,4467.7,1.00703]
[1756400453865,3.2078,4470.0,4469.0,1.0175]
[1756400454066,0.40265,4469.5,4469.0,1.0175]
[1756400454265,0.22351,4469.6,4469.0,1.0175]
[1756400454567,3.2078,4469.4,4468.4,3.2078]
[1756400454766,0.62623,4468.8,4468.4,3.2078]
[1756400454965,3.2078,4469.4,4468.4,3.2078]
[1756400455460,0.22351,4469.3,4468.5,1.0175]
[1756400455868,0.22351,4469.1,4468.5,1.0175]
[1756400456164,0.22351,4469.0,4468.2,40.8]
[1756400456360,0.22351,4469.0,4468.2,41.20277]
[1756400456566,0.40267,4469.3,4468.2,41.20277]
[1756400456766,2.22891,4468.9,4468.2,40.8]
[1756400456965,0.22351,4468.7,4468.2,40.8]
[1756400457171,3.2078,4468.8,4468.2,40.8]
[1756400457370,2.04971,4468.6,4468.2,40.8]
[1756400457572,1.8262,4468.6,4468.2,40.8]
[1756400457768,1.8262,4468.5,4468.2,40.8]
[1756400458072,0.22351,4468.6,4468.2,40.8]
[1756400458268,3.2078,4468.8,4468.4,1.0175]
[1756400458470,1.8262,4469.6,4468.5,1.0175]
[1756400458667,3.2078,4469.9,4469.4,0.40266]
[1756400458867,3.2078,4469.9,4469.0,1.0175]
[1756400459168,3.2078,4469.9,4469.8,1.0175]
[1756400459367,3.2078,4469.9,4469.5,1.42015]
[1756400459569,5.034,4469.9,4468.9,3.2078]
[1756400459770,1.8262,4469.7,4468.6,0.40273]
[1756400459975,0.22351,4469.0,4468.6,0.40273]
[1756400460273,3.2078,4469.8,4469.7,0.40264]
[1756400460467,3.2078,4469.8,4469.7,1.42014]
[1756400460769,3.2078,4469.8,4469.1,3.2078]
[1756400460971,3.2078,4469.8,4469.6,0.40264]
[1756400461170,3.2078,4469.8,4469.2,40.8]
[1756400461473,3.2078,4469.8,4469.7,1.42014]
[1756400461669,3.2078,4470.5,4470.4,1.42007]
[1756400461870,3.43131,4471.3,4470.4,1.0175]
[1756400462166,0.22351,4471.1,4471.0,0.40252]
[1756400462371,0.22351,4471.1,4470.5,1.00641]
[1756400462372,0.40234,4473.0,4471.6,0.40246]
[1756400462569,1.8262,4473.3,4471.3,1.0175]
[1756400462768,0.22351,4472.6,4471.9,1.0175]
[1756400462969,1.8262,4473.3,4472.1,0.40242]
[1756400463173,0.22351,4472.5,4472.3,0.4024]
[1756400463473,1.8262,4474.1,4471.4,40.8]
[1756400463670,0.22355,4474.5,4472.2,0.4024]
[1756400463671,1.8262,4472.6,4472.2,0.4024]
[1756400463866,1.8262,4472.6,4471.7,3.2078]
[1756400464374,0.22351,4472.5,4472.2,0.4024]
[1756400464566,1.8262,4472.4,4471.7,3.2078]
[1756400464772,2.04971,4472.4,4471.8,0.40245]
[1756400464973,1.8262,4472.4,4471.7,3.2078]
[1756400465174,1.8262,4473.0,4471.8,1.0175]
[1756400465371,0.22351,4472.6,4472.2,3.2078]
[1756400465669,0.22351,4472.6,4472.5,0.40239]
[1756400465870,3.2078,4473.6,4472.2,3.2078]
[1756400466073,1.8226,4473.5,4472.7,0.40237]
[1756400466269,1.8226,4473.5,4472.2,3.2078]
[1756400466471,1.8226,4473.5,4472.6,0.40238]
[1756400466867,1.00543,4475.1,4472.2,3.2078]
[1756400466868,1.8226,4472.9,4472.2,3.2078]
[1756400467073,1.8226,4472.7,4472.4,0.4024]
[1756400467268,3.2078,4473.0,4472.2,3.2078]
[1756400467475,2.04611,4472.3,4472.2,3.2078]
[1756400467869,2.04611,4472.3,4471.7,4.2253]
[1756400468070,1.00569,4473.9,4471.7,4.2253]
[1756400468071,2.04611,4472.2,4471.8,0.40245]
[1756400468274,1.00563,4474.2,4472.2,0.40242]
[1756400468275,0.22351,4472.3,4472.2,0.40242]
[1756400468568,0.22351,4472.4,4471.8,0.9828]
[1756400468768,2.04611,4472.4,4471.8,0.9828]
[1756400468969,3.2078,4473.0,4472.2,0.40242]
[1756400469174,1.8226,4473.4,4472.6,0.40238]
[1756400469369,0.22351,4472.7,4472.4,0.4024]
[1756400469576,1.8226,4472.6,4472.4,0.4024]
[1756400469969,1.8226,4473.6,4472.2,3.2078]
[1756400470169,0.22351,4472.7,4472.4,0.4024]
[1756400470476,3.2078,4473.1,4472.2,4.1906]
[1756400470673,1.8226,4474.1,4473.8,0.40227]
[1756400470869,1.8226,4474.1,4473.9,0.40226]
[1756400471069,5.0304,4474.2,4473.5,0.9828]
[1756400471275,1.8226,4474.1,4473.9,0.40226]
[1756400471478,3.2078,4474.2,4473.9,0.40226]
[1756400471479,1.8226,4474.0,4473.9,0.40226]
[1756400471778,3.2078,4474.2,4474.0,0.40225]
[1756400472181,3.2078,4474.7,4474.6,0.4022]
[1756400472380,1.8226,4474.9,4474.8,0.40219]
[1756400472982,1.8226,4475.6,4474.3,1.00558]
[1756400473177,1.8226,4475.6,4474.7,0.4022]
[1756400473375,1.8226,4476.1,4475.9,0.40208]
[1756400473570,3.2078,4476.7,4475.3,3.2078]
[1756400473778,1.8226,4476.6,4476.0,0.40208]
[1756400473979,2.04611,4475.4,4475.3,3.2078]
[1756400474174,3.2078,4476.5,4475.0,32.207]
[1756400474381,2.04611,4475.1,4475.0,32.207]
[1756400474878,6.04611,4475.1,4474.1,3.2078]
[1756400475079,1.8226,4475.0,4474.3,0.9722]
[1756400475275,1.8226,4475.0,4474.9,0.40218]
[1756400475476,2.04611,4475.0,4474.9,0.40218]
[1756400475679,0.22351,4475.0,4474.7,0.40219]
[1756400475976,1.8226,4475.4,4474.9,0.40217]
[1756400476177,1.8226,4475.4,4474.1,3.2078]
[1756400476178,1.8226,4475.4,4474.6,1.00552]
[1756400476382,1.8226,4475.4,4475.3,0.40214]
[1756400476976,3.2078,4476.2,4474.6,4.21332]
[1756400476977,1.8226,4476.1,4476.0,0.40207]
[1756400477272,1.8226,4476.1,4474.6,3.2078]
[1756400477478,0.22351,4475.6,4475.5,0.40212]
[1756400477877,3.2078,4476.7,4475.9,0.40208]
[1756400478079,1.8226,4475.9,4475.1,3.2078]
[1756400478484,1.8226,4475.9,4475.2,0.40215]
[1756400478683,1.8226,4475.9,4475.3,0.40214]
[1756400478876,1.8226,4475.9,4474.5,40.8]
[1756400479181,1.00492,4477.3,4475.3,0.40214]
[1756400479182,3.2078,4475.4,4475.3,0.40214]
[1756400479381,5.0304,4475.4,4475.3,0.40214]
[1756400479578,5.0304,4475.4,4474.7,0.40219]
[1756400479579,1.8226,4475.3,4474.7,0.40219]
[1756400479779,3.2078,4474.9,4474.3,3.2078]
[1756400479979,3.2078,4474.9,4474.8,0.40219]
[1756400480384,5.0304,4475.6,4475.5,0.40213]
[1756400480587,0.22351,4475.9,4475.8,0.4021]
[1756400480785,0.22351,4475.9,4474.8,3.2078]
[1756400480786,2.04611,4475.9,4475.0,1.00544]
[1756400481083,0.22351,4475.4,4475.0,1.00544]
[1756400481377,1.8226,4475.3,4475.2,0.40216]
[1756400482584,1.8226,4476.1,4476.0,0.40209]
[1756400482784,2.04611,4476.1,4476.0,0.40209]
[1756400482984,1.8226,4476.1,4476.0,0.40209]
[1756400483184,3.2078,4476.2,4476.0,0.40209]
[1756400483384,1.8226,4476.6,4476.5,0.40204]
[1756400483785,2.04611,4476.6,4476.5,0.40204]
[1756400483991,2.04611,4476.6,4475.1,0.9722]
[1756400484184,1.8226,4476.1,4475.7,1.00529]
[1756400484384,1.8226,4476.1,4476.0,0.40209]
[1756400484887,1.8226,4476.0,4474.8,3.2078]
[1756400485086,1.8226,4476.1,4475.6,0.40212]
[1756400485290,1.8226,4476.1,4475.9,0.40209]
[1756400485489,1.8226,4476.0,4475.9,0.40209]
[1756400485890,2.04611,4476.0,4475.7,0.40211]
[1756400486084,1.8226,4476.1,4475.8,0.40211]
[1756400486279,1.8226,4475.9,4475.8,0.40211]
[1756400486485,3.2078,4476.2,4476.1,0.40208]
[1756400486788,1.8226,4476.5,4476.4,0.40205]
[1756400487186,2.04611,4476.5,4476.4,0.40205]
[1756400487390,1.8226,4476.7,4476.6,0.40203]
[1756400487688,3.2078,4476.8,4476.6,0.40203]
[1756400487891,3.2078,4476.8,4476.0,1.00523]
[1756400487892,1.8226,4476.6,4476.5,0.40204]
[1756400488085,1.8226,4476.6,4476.1,0.9722]
[1756400488086,1.8226,4476.5,4475.7,1.00528]
[1756400488288,5.0304,4476.3,4475.5,1.00535]
[1756400488486,2.04611,4476.2,4476.1,0.40208]
[1756400488884,1.8226,4476.2,4475.9,0.4021]
[1756400489090,1.8226,4476.0,4475.8,0.40211]
[1756400489281,1.8226,4476.2,4475.8,0.40211]
[1756400489486,1.8226,4476.2,4476.1,0.40208]
[1756400489686,1.8226,4476.1,4475.7,0.40211]
[1756400489886,1.8226,4476.2,4475.7,1.0053]
[1756400490086,3.2078,4476.3,4476.1,0.40208]
[1756400490287,1.8226,4476.8,4476.7,0.40203]
[1756400490489,1.8226,4476.8,4476.1,0.9722]
[1756400490690,0.22351,4476.2,4475.6,1.00533]
[1756400490894,1.00485,4477.8,4475.1,3.2078]
[1756400490895,1.8226,4476.4,4475.1,3.2078]
[1756400491083,3.2078,4475.8,4475.3,0.40215]
[1756400491288,1.8226,4475.6,4475.1,0.40216]
[1756400491487,1.8226,4475.2,4475.1,0.40216]
[1756400492093,0.59981379,4475.2,4473.8,4.18]
[1756400492292,3.2078,4474.3,4473.7,32.183]
[1756400492493,1.8226,4474.1,4474.0,0.40227]
[1756400492894,1.8226,4474.0,4473.9,0.40228]